[Event "Early-Titled-Tuesday-Blitz-May-07-2024"]
[Site "Chess.com"]
[Date "2024.05.07"]
[Round "1"]
[White "CSB7"]
[Black "thesupera12"]
[Result "1-0"]
[WhiteElo "2789"]
[BlackElo "2444"]
[TimeControl "180+1"]
[EndTime "8:07:14 PDT"]
[Termination "CSB7 won by resignation"]

1. d4 {[%clk 0:03:00.9]} 1... Nf6 {[%clk 0:02:58]} 2. Bf4 {[%clk 0:03:00.9]}
2... Nh5 {[%clk 0:02:57.3]} 3. Bc1 {[%clk 0:02:57.5]} 3... Nf6 {[%clk 0:02:56]}
4. Nf3 {[%clk 0:02:57.9]} 4... d5 {[%clk 0:02:55.6]} 5. Bf4 {[%clk 0:02:57.4]}
5... c5 {[%clk 0:02:55.1]} 6. e3 {[%clk 0:02:57.2]} 6... Nc6 {[%clk 0:02:55.2]}
7. Nbd2 {[%clk 0:02:56.7]} 7... Bg4 {[%clk 0:02:55.2]} 8. c3 {[%clk 0:02:46]}
8... e6 {[%clk 0:02:54.2]} 9. Qa4 {[%clk 0:02:44.9]} 9... Bd6 {[%clk 0:02:52.1]}
10. Ba6 {[%clk 0:02:44.1]} 10... bxa6 {[%clk 0:02:16.3]} 11. Qxc6+ {[%clk
0:02:40.8]} 11... Ke7 {[%clk 0:02:16.8]} 12. Qb7+ {[%clk 0:01:17.4]} 12... Qd7
{[%clk 0:01:55.5]} 13. Bxd6+ {[%clk 0:01:16.3]} 13... Kxd6 {[%clk 0:01:55.7]}
14. Qxa6+ {[%clk 0:00:59.5]} 14... Ke7 {[%clk 0:01:55]} 15. dxc5 {[%clk
0:00:56]} 15... Rhc8 {[%clk 0:01:52.8]} 16. b4 {[%clk 0:00:45.3]} 16... Bxf3
{[%clk 0:01:52.9]} 17. Nxf3 {[%clk 0:00:38.4]} 17... Ne4 {[%clk 0:01:52.5]} 18.
Rc1 {[%clk 0:00:37.6]} 18... Rc6 {[%clk 0:01:47.9]} 19. Qd3 {[%clk 0:00:35.5]}
19... f6 {[%clk 0:01:47.3]} 20. Nd4 {[%clk 0:00:33.4]} 20... Rc7 {[%clk
0:01:45]} 21. f3 {[%clk 0:00:33]} 21... Ng5 {[%clk 0:01:44.6]} 22. h4 {[%clk
0:00:32.5]} 22... Nf7 {[%clk 0:01:45.3]} 23. Qxh7 {[%clk 0:00:31.3]} 23... g5
{[%clk 0:01:27.5]} 24. hxg5 {[%clk 0:00:26.3]} 24... Rh8 {[%clk 0:01:27.9]} 25.
g6 {[%clk 0:00:26.9]} 25... Rxh7 {[%clk 0:01:26.3]} 26. Rxh7 {[%clk 0:00:27.8]}
26... Qe8 {[%clk 0:01:02.3]} 27. gxf7 {[%clk 0:00:18.9]} 27... Qf8 {[%clk
0:00:59]} 28. Kf2 {[%clk 0:00:19.2]} 28... f5 {[%clk 0:00:47.5]} 29. Rch1 {[%clk
0:00:18.3]} 29... a5 {[%clk 0:00:40.5]} 30. Rh8 {[%clk 0:00:17]} 30... axb4
{[%clk 0:00:34.2]} 31. Rxf8 {[%clk 0:00:16.6]} 31... Kxf8 {[%clk 0:00:35.1]} 32.
Nxe6+ {[%clk 0:00:16.3]} 32... Kxf7 {[%clk 0:00:35]} 33. Nxc7 {[%clk 0:00:17.2]}
33... bxc3 {[%clk 0:00:35.8]} 34. Nxd5 {[%clk 0:00:17]} 34... c2 {[%clk
0:00:36.7]} 35. Rc1 {[%clk 0:00:16.2]} 35... f4 {[%clk 0:00:37]} 36. Nxf4 {[%clk
0:00:14.8]} 36... Kf6 {[%clk 0:00:36.9]} 37. Rxc2 {[%clk 0:00:15.2]} 37... Ke5
{[%clk 0:00:37.6]} 38. Rd2 {[%clk 0:00:15]} 38... Kf5 {[%clk 0:00:37.5]} 39. a4
{[%clk 0:00:15.7]} 39... Kg5 {[%clk 0:00:38.4]} 40. a5 {[%clk 0:00:16.6]} 40...
Kh4 {[%clk 0:00:39.3]} 41. a6 {[%clk 0:00:16.4]} 41... Kg5 {[%clk 0:00:39.9]}
42. a7 {[%clk 0:00:16.2]} 42... Kh6 {[%clk 0:00:40.7]} 43. a8=Q {[%clk
0:00:16.3]} 43... Kh7 {[%clk 0:00:41.6]} 44. c6 {[%clk 0:00:16.5]} 44... Kh6
{[%clk 0:00:42.3]} 45. c7 {[%clk 0:00:16.6]} 45... Kg5 {[%clk 0:00:43.2]} 46.
c8=Q {[%clk 0:00:16.6]} 46... Kf6 {[%clk 0:00:43.7]} 47. e4 {[%clk 0:00:13.8]}
47... Kg5 {[%clk 0:00:44.6]} 48. Qf8 {[%clk 0:00:08.8]} 48... Kh4 {[%clk
0:00:43.9]} 49. e5 {[%clk 0:00:08.7]} 49... Kg5 {[%clk 0:00:42.8]} 50. e6 {[%clk
0:00:08.6]} 1-0

[Event "Early-Titled-Tuesday-Blitz-May-07-2024"]
[Site "Chess.com"]
[Date "2024.05.07"]
[Round "1"]
[White "maurovargas01"]
[Black "Journey_to_GrandMaster_YT"]
[Result "1-0"]
[WhiteElo "1975"]
[BlackElo "2535"]
[TimeControl "180+1"]
[EndTime "8:07:14 PDT"]
[Termination "maurovargas01 won by checkmate"]

1. e4 {[%clk 0:02:56.8]} 1... d6 {[%clk 0:02:59.5]} 2. Nc3 {[%clk 0:02:56.2]}
2... Nf6 {[%clk 0:02:59.7]} 3. f4 {[%clk 0:02:57.1]} 3... c5 {[%clk 0:02:59.1]}
4. d3 {[%clk 0:02:57.3]} 4... Nc6 {[%clk 0:02:58.9]} 5. Nf3 {[%clk 0:02:57.6]}
5... g6 {[%clk 0:02:59.3]} 6. h3 {[%clk 0:02:57.2]} 6... Bg7 {[%clk 0:02:59.9]}
7. g4 {[%clk 0:02:57.3]} 7... O-O {[%clk 0:03:00.5]} 8. Bg2 {[%clk 0:02:57.4]}
8... Rb8 {[%clk 0:02:59.2]} 9. O-O {[%clk 0:02:57.1]} 9... b5 {[%clk 0:02:59.3]}
10. Nd5 {[%clk 0:02:54.7]} 10... Nxd5 {[%clk 0:02:49.7]} 11. exd5 {[%clk
0:02:53.2]} 11... Nd4 {[%clk 0:02:50.3]} 12. Ng5 {[%clk 0:02:38.1]} 12... b4
{[%clk 0:02:46.5]} 13. c3 {[%clk 0:02:37.5]} 13... bxc3 {[%clk 0:02:44.8]} 14.
bxc3 {[%clk 0:02:37.5]} 14... Nb5 {[%clk 0:02:45.3]} 15. Qe1 {[%clk 0:02:30.5]}
15... Bxc3 {[%clk 0:02:30.9]} 16. Bd2 {[%clk 0:02:29.1]} 16... Bxa1 {[%clk
0:02:30.5]} 17. Qxa1 {[%clk 0:02:29.1]} 17... Nd4 {[%clk 0:02:28]} 18. Bc3
{[%clk 0:02:27.7]} 18... Qb6 {[%clk 0:02:24.2]} 19. Kh1 {[%clk 0:02:17.8]} 19...
Ba6 {[%clk 0:02:17.9]} 20. Re1 {[%clk 0:02:15.3]} 20... Bxd3 {[%clk 0:02:16.1]}
21. Kh2 {[%clk 0:02:13.9]} 21... f6 {[%clk 0:02:10]} 22. Bxd4 {[%clk 0:02:11.3]}
22... cxd4 {[%clk 0:02:09.5]} 23. Ne6 {[%clk 0:02:10.7]} 23... Rfc8 {[%clk
0:02:06.4]} 24. Qd1 {[%clk 0:01:59.1]} 24... Rc3 {[%clk 0:01:35.9]} 25. Qd2
{[%clk 0:01:56.3]} 25... Ra3 {[%clk 0:01:21.2]} 26. f5 {[%clk 0:01:53]} 26...
Qb4 {[%clk 0:01:08.4]} 27. Qh6 {[%clk 0:01:44.6]} 27... Kf7 {[%clk 0:00:59.2]}
28. Qxh7+ {[%clk 0:01:25.1]} 28... Ke8 {[%clk 0:00:59]} 29. Qg8+ {[%clk
0:01:11.4]} 29... Kd7 {[%clk 0:00:56.9]} 30. Nc5+ {[%clk 0:00:54.1]} 30... dxc5
{[%clk 0:00:28.9]} 31. Qe6+ {[%clk 0:00:46.5]} 31... Kc7 {[%clk 0:00:27.3]} 32.
Qc6+ {[%clk 0:00:45]} 32... Kd8 {[%clk 0:00:24.9]} 33. d6 {[%clk 0:00:37]} 33...
Qxe1 {[%clk 0:00:21.5]} 34. Qc7+ {[%clk 0:00:31.9]} 34... Ke8 {[%clk 0:00:21.9]}
35. d7+ {[%clk 0:00:27.8]} 35... Kf7 {[%clk 0:00:22]} 36. Qxb8 {[%clk
0:00:23.9]} 36... Rxa2 {[%clk 0:00:17.5]} 37. Qe8+ {[%clk 0:00:22.8]} 37... Kg7
{[%clk 0:00:10.5]} 38. Qxg6+ {[%clk 0:00:22.5]} 38... Kf8 {[%clk 0:00:09.7]} 39.
d8=Q# {[%clk 0:00:21.4]} 1-0

[Event "Early-Titled-Tuesday-Blitz-May-07-2024"]
[Site "Chess.com"]
[Date "2024.05.07"]
[Round "1"]
[White "superjem123"]
[Black "NajdorfPlayerc5"]
[Result "1-0"]
[WhiteElo "2742"]
[BlackElo "2423"]
[TimeControl "180+1"]
[EndTime "8:07:16 PDT"]
[Termination "superjem123 won by checkmate"]

1. c4 {[%clk 0:03:00.9]} 1... Nf6 {[%clk 0:02:51]} 2. g3 {[%clk 0:03:00.6]} 2...
c5 {[%clk 0:02:47.8]} 3. Bg2 {[%clk 0:03:01.5]} 3... d5 {[%clk 0:02:47.1]} 4.
cxd5 {[%clk 0:03:01.4]} 4... Nxd5 {[%clk 0:02:48]} 5. Nf3 {[%clk 0:03:01.2]}
5... Nc6 {[%clk 0:02:48]} 6. d4 {[%clk 0:03:00.9]} 6... e6 {[%clk 0:02:38.4]} 7.
O-O {[%clk 0:03:00]} 7... Be7 {[%clk 0:02:17.6]} 8. dxc5 {[%clk 0:02:45.3]} 8...
Bxc5 {[%clk 0:02:16.2]} 9. a3 {[%clk 0:02:41.8]} 9... O-O {[%clk 0:02:15]} 10.
b4 {[%clk 0:02:41.6]} 10... Be7 {[%clk 0:02:14.8]} 11. Bb2 {[%clk 0:02:40.7]}
11... Bf6 {[%clk 0:02:15.2]} 12. Ra2 {[%clk 0:02:34.6]} 12... a5 {[%clk
0:01:34.7]} 13. b5 {[%clk 0:02:32.2]} 13... Na7 {[%clk 0:01:33.8]} 14. Nd4
{[%clk 0:02:12.8]} 14... Bxd4 {[%clk 0:01:24.7]} 15. Qxd4 {[%clk 0:02:12.4]}
15... Nf6 {[%clk 0:01:13.7]} 16. a4 {[%clk 0:02:04.6]} 16... Qxd4 {[%clk
0:01:03.2]} 17. Bxd4 {[%clk 0:02:05.5]} 17... Rd8 {[%clk 0:01:03.1]} 18. Bxf6
{[%clk 0:01:51.3]} 18... gxf6 {[%clk 0:01:01.7]} 19. Rc2 {[%clk 0:01:52.2]}
19... Rd7 {[%clk 0:00:31.3]} 20. Rfc1 {[%clk 0:01:49.3]} 20... Rb8 {[%clk
0:00:26.6]} 21. Rc7 {[%clk 0:01:40.8]} 21... b6 {[%clk 0:00:26.1]} 22. Rxd7
{[%clk 0:01:40.3]} 22... Bxd7 {[%clk 0:00:27]} 23. Rc7 {[%clk 0:01:40.7]} 23...
Bxb5 {[%clk 0:00:24]} 24. Rxa7 {[%clk 0:01:33.8]} 24... Bxa4 {[%clk 0:00:21.3]}
25. Nc3 {[%clk 0:01:34.7]} 25... Bb3 {[%clk 0:00:16.1]} 26. Nb5 {[%clk
0:01:17.7]} 26... Bc4 {[%clk 0:00:13.2]} 27. Nd6 {[%clk 0:01:14.1]} 27... Bxe2
{[%clk 0:00:13.3]} 28. Nxf7 {[%clk 0:01:14.2]} 28... Rc8 {[%clk 0:00:06.7]} 29.
Nh6+ {[%clk 0:01:11.9]} 29... Kh8 {[%clk 0:00:06]} 30. Be4 {[%clk 0:01:08.1]}
30... f5 {[%clk 0:00:05.6]} 31. Ba8 {[%clk 0:00:42.7]} 31... Rc1+ {[%clk
0:00:02.6]} 32. Kg2 {[%clk 0:00:43.1]} 32... Rc8 {[%clk 0:00:02]} 33. Kh3 {[%clk
0:00:30.5]} 33... Bd3 {[%clk 0:00:01.2]} 34. Kh4 {[%clk 0:00:29.4]} 34... b5
{[%clk 0:00:01.5]} 35. Kg5 {[%clk 0:00:28.2]} 35... b4 {[%clk 0:00:01.7]} 36.
Kf6 {[%clk 0:00:28.4]} 36... b3 {[%clk 0:00:02.1]} 37. Rg7 {[%clk 0:00:22.8]}
37... b2 {[%clk 0:00:01.8]} 38. Nf7# {[%clk 0:00:23]} 1-0

[Event "Early-Titled-Tuesday-Blitz-May-07-2024"]
[Site "Chess.com"]
[Date "2024.05.07"]
[Round "1"]
[White "GlavkonVVS"]
[Black "chesslh93"]
[Result "1-0"]
[WhiteElo "2653"]
[BlackElo "2355"]
[TimeControl "180+1"]
[EndTime "8:07:17 PDT"]
[Termination "GlavkonVVS won on time"]

1. c4 {[%clk 0:02:53.4]} 1... e6 {[%clk 0:02:58.5]} 2. Nc3 {[%clk 0:02:53.5]}
2... d5 {[%clk 0:02:59]} 3. d4 {[%clk 0:02:53.8]} 3... Nf6 {[%clk 0:02:59.1]} 4.
Nf3 {[%clk 0:02:53.8]} 4... Be7 {[%clk 0:02:59.2]} 5. Bg5 {[%clk 0:02:53.5]}
5... O-O {[%clk 0:02:59.5]} 6. e3 {[%clk 0:02:53]} 6... h6 {[%clk 0:02:59.9]} 7.
Bxf6 {[%clk 0:02:50.9]} 7... Bxf6 {[%clk 0:03:00.8]} 8. Qc2 {[%clk 0:02:50.7]}
8... c5 {[%clk 0:03:00.4]} 9. dxc5 {[%clk 0:02:49.6]} 9... dxc4 {[%clk
0:02:56.4]} 10. Bxc4 {[%clk 0:02:48.7]} 10... Qa5 {[%clk 0:02:56.4]} 11. O-O
{[%clk 0:02:47.5]} 11... Bxc3 {[%clk 0:02:50.2]} 12. Qxc3 {[%clk 0:02:46.6]}
12... Qxc3 {[%clk 0:02:49.1]} 13. bxc3 {[%clk 0:02:46.5]} 13... Nd7 {[%clk
0:02:49.3]} 14. c6 {[%clk 0:02:46.7]} 14... bxc6 {[%clk 0:02:49.8]} 15. Rfd1
{[%clk 0:02:32.6]} 15... Nb6 {[%clk 0:02:49.7]} 16. Be2 {[%clk 0:02:30.5]} 16...
c5 {[%clk 0:02:47.6]} 17. a4 {[%clk 0:02:23]} 17... a5 {[%clk 0:02:10.2]} 18.
Rd6 {[%clk 0:02:17.4]} 18... Nd5 {[%clk 0:02:09.8]} 19. Rc1 {[%clk 0:02:06.9]}
19... Ra7 {[%clk 0:02:03]} 20. Ne5 {[%clk 0:01:49.8]} 20... Re8 {[%clk
0:01:39.7]} 21. Bb5 {[%clk 0:01:47.7]} 21... Rf8 {[%clk 0:01:27.1]} 22. e4
{[%clk 0:01:44.9]} 22... Nf6 {[%clk 0:01:20]} 23. f3 {[%clk 0:01:44.1]} 23...
Rc7 {[%clk 0:01:11.5]} 24. Nc4 {[%clk 0:01:35.7]} 24... Ra7 {[%clk 0:00:47.5]}
25. Rcd1 {[%clk 0:01:21.8]} 25... g5 {[%clk 0:00:37.7]} 26. Rc6 {[%clk
0:01:19.7]} 26... Bd7 {[%clk 0:00:32.8]} 27. Rxc5 {[%clk 0:01:18.6]} 27... Bxb5
{[%clk 0:00:33.2]} 28. axb5 {[%clk 0:01:14.8]} 28... a4 {[%clk 0:00:33.4]} 29.
b6 {[%clk 0:01:03.2]} 29... Rb7 {[%clk 0:00:33.5]} 30. Rc7 {[%clk 0:00:59.8]}
30... Rfb8 {[%clk 0:00:27.3]} 31. Rxb7 {[%clk 0:00:59.5]} 31... Rxb7 {[%clk
0:00:28.2]} 32. Rd8+ {[%clk 0:00:55.9]} 32... Kg7 {[%clk 0:00:28.2]} 33. Ra8
{[%clk 0:00:55.8]} 33... Nd7 {[%clk 0:00:06.4]} 34. Ra7 {[%clk 0:00:47.4]} 34...
Nc5 {[%clk 0:00:03.6]} 35. Ra5 {[%clk 0:00:44]} 35... Nd7 {[%clk 0:00:02.4]} 36.
Rxa4 {[%clk 0:00:44.3]} 36... Kf6 {[%clk 0:00:02.4]} 37. Ra7 {[%clk 0:00:40.8]}
37... Nc5 {[%clk 0:00:02.5]} 38. Kf2 {[%clk 0:00:39.6]} 38... Ke7 {[%clk
0:00:01.7]} 39. Ke3 {[%clk 0:00:38.7]} 39... e5 {[%clk 0:00:00.3]} 40. Rxb7+
{[%clk 0:00:38.1]} 40... Nxb7 {[%clk 0:00:00.1]} 41. Nxe5 {[%clk 0:00:38.7]} 1-0

[Event "Early-Titled-Tuesday-Blitz-May-07-2024"]
[Site "Chess.com"]
[Date "2024.05.07"]
[Round "1"]
[White "Nechitaylo_Nikita"]
[Black "LeninGuerra"]
[Result "0-1"]
[WhiteElo "2351"]
[BlackElo "2648"]
[TimeControl "180+1"]
[EndTime "8:07:17 PDT"]
[Termination "LeninGuerra won on time"]

1. d4 {[%clk 0:03:00.9]} 1... Nf6 {[%clk 0:02:44.6]} 2. c4 {[%clk 0:03:00.8]}
2... c5 {[%clk 0:02:43.9]} 3. d5 {[%clk 0:03:00.9]} 3... b5 {[%clk 0:02:42.4]}
4. cxb5 {[%clk 0:03:01.8]} 4... a6 {[%clk 0:02:42.8]} 5. bxa6 {[%clk 0:03:02.7]}
5... Bxa6 {[%clk 0:02:43]} 6. Nc3 {[%clk 0:03:03.4]} 6... d6 {[%clk 0:02:43.3]}
7. e4 {[%clk 0:03:04.1]} 7... Nbd7 {[%clk 0:02:43.6]} 8. Bxa6 {[%clk 0:03:01.6]}
8... Rxa6 {[%clk 0:02:44.5]} 9. Nf3 {[%clk 0:03:02]} 9... g6 {[%clk 0:02:44.8]}
10. O-O {[%clk 0:03:02.3]} 10... Bg7 {[%clk 0:02:45.2]} 11. a4 {[%clk
0:03:00.5]} 11... O-O {[%clk 0:02:44.9]} 12. Ra3 {[%clk 0:03:01.1]} 12... Qa8
{[%clk 0:02:44.8]} 13. Qc2 {[%clk 0:02:55]} 13... Rb8 {[%clk 0:02:44.6]} 14. Nb5
{[%clk 0:02:54.4]} 14... Rc8 {[%clk 0:02:38.8]} 15. Nd2 {[%clk 0:02:46.6]} 15...
Nb6 {[%clk 0:02:28.8]} 16. Nc4 {[%clk 0:02:40.7]} 16... Nxc4 {[%clk 0:02:17.2]}
17. Qxc4 {[%clk 0:02:41.6]} 17... Nd7 {[%clk 0:02:17.2]} 18. a5 {[%clk
0:01:19.5]} 18... Rxa5 {[%clk 0:02:13.7]} 19. Bg5 {[%clk 0:01:06.3]} 19... Nb6
{[%clk 0:02:10.3]} 20. Qe2 {[%clk 0:00:50.4]} 20... Rxa3 {[%clk 0:02:06]} 21.
bxa3 {[%clk 0:00:48.4]} 21... Kf8 {[%clk 0:01:32.3]} 22. Qg4 {[%clk 0:00:38.6]}
22... h6 {[%clk 0:01:25.7]} 23. Bf4 {[%clk 0:00:28.9]} 23... Rd8 {[%clk
0:01:15.5]} 24. h4 {[%clk 0:00:24.6]} 24... h5 {[%clk 0:01:12]} 25. Qg5 {[%clk
0:00:17.5]} 25... Qa4 {[%clk 0:01:10.7]} 26. Nxd6 {[%clk 0:00:04.1]} 26... f6
{[%clk 0:00:51]} 27. Qxg6 {[%clk 0:00:04.5]} 27... exd6 {[%clk 0:00:45.6]} 28.
Bh6 {[%clk 0:00:04.6]} 28... Bxh6 {[%clk 0:00:38.9]} 29. Qxh6+ {[%clk
0:00:05.5]} 29... Ke7 {[%clk 0:00:39.4]} 30. Qg7+ {[%clk 0:00:05.8]} 30... Ke8
{[%clk 0:00:39.9]} 31. Qxf6 {[%clk 0:00:04.2]} 31... Qxe4 {[%clk 0:00:33.1]} 32.
Qh8+ {[%clk 0:00:02.3]} 32... Kd7 {[%clk 0:00:32.2]} 33. Qxh5 {[%clk 0:00:03.2]}
33... Qxd5 {[%clk 0:00:31.1]} 34. Qh7+ {[%clk 0:00:02.9]} 34... Kc6 {[%clk
0:00:31]} 35. g4 {[%clk 0:00:02.6]} 35... Qf3 {[%clk 0:00:28]} 36. g5 {[%clk
0:00:02.2]} 36... Qg4+ {[%clk 0:00:27.8]} 37. Kh2 {[%clk 0:00:02.5]} 37... Nd5
{[%clk 0:00:25.3]} 38. f3 {[%clk 0:00:02.3]} 38... Qf4+ {[%clk 0:00:25]} 39. Kh3
{[%clk 0:00:02.5]} 39... Re8 {[%clk 0:00:21.9]} 40. g6 {[%clk 0:00:02]} 40...
Re2 {[%clk 0:00:20.8]} 0-1

[Event "Early-Titled-Tuesday-Blitz-May-07-2024"]
[Site "Chess.com"]
[Date "2024.05.07"]
[Round "1"]
[White "unbreakablepawn35"]
[Black "jk13"]
[Result "1/2-1/2"]
[WhiteElo "2394"]
[BlackElo "2680"]
[TimeControl "180+1"]
[EndTime "8:07:20 PDT"]
[Termination "Game drawn - insufficient material"]

1. d4 {[%clk 0:03:00.9]} 1... Nf6 {[%clk 0:02:57.8]} 2. Nf3 {[%clk 0:03:00.2]}
2... e6 {[%clk 0:02:55.1]} 3. e3 {[%clk 0:03:00.3]} 3... d5 {[%clk 0:02:54.4]}
4. Bd3 {[%clk 0:02:58.9]} 4... c5 {[%clk 0:02:54.7]} 5. b3 {[%clk 0:02:58.7]}
5... Be7 {[%clk 0:02:55.1]} 6. Bb2 {[%clk 0:02:58.9]} 6... O-O {[%clk
0:02:55.8]} 7. O-O {[%clk 0:02:59.1]} 7... b6 {[%clk 0:02:56.5]} 8. Nbd2 {[%clk
0:02:58.7]} 8... Ba6 {[%clk 0:02:56.6]} 9. Bxa6 {[%clk 0:02:56.8]} 9... Nxa6
{[%clk 0:02:57.5]} 10. Qe2 {[%clk 0:02:56.9]} 10... Nb4 {[%clk 0:02:55.3]} 11.
c4 {[%clk 0:02:44.2]} 11... Rc8 {[%clk 0:02:48.8]} 12. a3 {[%clk 0:02:42.9]}
12... Nc6 {[%clk 0:02:49.3]} 13. Rfc1 {[%clk 0:02:37.5]} 13... cxd4 {[%clk
0:02:41]} 14. Nxd4 {[%clk 0:02:38.4]} 14... Nxd4 {[%clk 0:02:37.2]} 15. Bxd4
{[%clk 0:02:39.3]} 15... Qd7 {[%clk 0:02:34.6]} 16. cxd5 {[%clk 0:02:27.2]}
16... Nxd5 {[%clk 0:02:34.4]} 17. Nf3 {[%clk 0:02:23.6]} 17... Rxc1+ {[%clk
0:02:31]} 18. Rxc1 {[%clk 0:02:22]} 18... Bxa3 {[%clk 0:02:31.8]} 19. Ra1 {[%clk
0:02:18.8]} 19... Bd6 {[%clk 0:02:21.8]} 20. Qa6 {[%clk 0:02:15.6]} 20... Bb8
{[%clk 0:02:18.8]} 21. Ne5 {[%clk 0:02:14.3]} 21... Qc8 {[%clk 0:02:08.4]} 22.
Qxc8 {[%clk 0:02:07.6]} 22... Rxc8 {[%clk 0:02:07.9]} 23. Nd7 {[%clk 0:02:08.3]}
23... Bd6 {[%clk 0:01:53.6]} 24. g3 {[%clk 0:02:08.1]} 24... Rc7 {[%clk
0:01:50.7]} 25. Ne5 {[%clk 0:01:52.6]} 25... Bxe5 {[%clk 0:01:50.6]} 26. Bxe5
{[%clk 0:01:53.5]} 26... Rd7 {[%clk 0:01:50.9]} 27. Bd4 {[%clk 0:01:53.1]} 27...
f6 {[%clk 0:01:48.1]} 28. Rc1 {[%clk 0:01:53.4]} 28... e5 {[%clk 0:01:43.9]} 29.
Bb2 {[%clk 0:01:53.9]} 29... Kf7 {[%clk 0:01:37.5]} 30. Ba3 {[%clk 0:01:50.8]}
30... Rc7 {[%clk 0:01:26.6]} 31. Rxc7+ {[%clk 0:01:47.4]} 31... Nxc7 {[%clk
0:01:26.7]} 32. Kf1 {[%clk 0:01:48.2]} 32... Ke6 {[%clk 0:01:20.2]} 33. Ke2
{[%clk 0:01:44.3]} 33... e4 {[%clk 0:01:18.5]} 34. Kd2 {[%clk 0:01:39.8]} 34...
Kd5 {[%clk 0:01:17.5]} 35. Bf8 {[%clk 0:01:38]} 35... Ne6 {[%clk 0:01:14.5]} 36.
Ba3 {[%clk 0:01:36.7]} 36... g5 {[%clk 0:01:13.2]} 37. h3 {[%clk 0:01:36.1]}
37... h5 {[%clk 0:01:10]} 38. Bb2 {[%clk 0:01:30.2]} 38... f5 {[%clk 0:01:09.3]}
39. Bf6 {[%clk 0:01:29.9]} 39... g4 {[%clk 0:00:53.7]} 40. hxg4 {[%clk
0:01:29.5]} 40... hxg4 {[%clk 0:00:45]} 41. Kc3 {[%clk 0:01:16]} 41... Nc5
{[%clk 0:00:45.1]} 42. Kb4 {[%clk 0:01:05.9]} 42... Nd3+ {[%clk 0:00:23.1]} 43.
Kb5 {[%clk 0:01:06.2]} 43... Nxf2 {[%clk 0:00:20.1]} 44. Bg5 {[%clk 0:01:00.4]}
44... Nd3 {[%clk 0:00:17.9]} 45. Ka6 {[%clk 0:00:59.7]} 45... Kc6 {[%clk
0:00:16.6]} 46. Kxa7 {[%clk 0:00:59.8]} 46... Kb5 {[%clk 0:00:16.6]} 47. Kb7
{[%clk 0:01:00.1]} 47... Nc5+ {[%clk 0:00:16.7]} 48. Kc7 {[%clk 0:00:59.1]}
48... Nxb3 {[%clk 0:00:17.6]} 49. Kd6 {[%clk 0:00:59.7]} 49... Kc4 {[%clk
0:00:16.3]} 50. Ke5 {[%clk 0:01:00.2]} 50... b5 {[%clk 0:00:16.3]} 51. Kxf5
{[%clk 0:01:00.8]} 51... Nd2 {[%clk 0:00:16.1]} 52. Bf6 {[%clk 0:00:59.1]} 52...
Kd3 {[%clk 0:00:15.9]} 53. Kxg4 {[%clk 0:00:59.1]} 53... Kxe3 {[%clk 0:00:16.3]}
54. Kf5 {[%clk 0:00:59.7]} 54... Kf3 {[%clk 0:00:13.3]} 55. g4 {[%clk
0:00:59.7]} 55... e3 {[%clk 0:00:13.8]} 56. Bc3 {[%clk 0:00:59.6]} 56... Ne4
{[%clk 0:00:13.7]} 57. Be1 {[%clk 0:00:59.3]} 57... e2 {[%clk 0:00:12.9]} 58. g5
{[%clk 0:00:57.9]} 58... Nxg5 {[%clk 0:00:13]} 59. Kxg5 {[%clk 0:00:58.8]} 59...
Kg2 {[%clk 0:00:12.7]} 60. Kf4 {[%clk 0:00:56.9]} 60... Kf1 {[%clk 0:00:13.1]}
61. Bb4 {[%clk 0:00:55.4]} 61... e1=Q {[%clk 0:00:13]} 62. Bxe1 {[%clk 0:00:56]}
62... Kxe1 {[%clk 0:00:13.9]} 63. Ke3 {[%clk 0:00:56.4]} 63... Kd1 {[%clk
0:00:13.7]} 64. Kd3 {[%clk 0:00:57.1]} 64... Kc1 {[%clk 0:00:14.2]} 65. Kc3
{[%clk 0:00:57.8]} 65... Kb1 {[%clk 0:00:14.8]} 66. Kb4 {[%clk 0:00:58.4]} 66...
Ka2 {[%clk 0:00:15.7]} 67. Kxb5 {[%clk 0:00:59.2]} 1/2-1/2

[Event "Early-Titled-Tuesday-Blitz-May-07-2024"]
[Site "Chess.com"]
[Date "2024.05.07"]
[Round "1"]
[White "Roosters19"]
[Black "Defend1r"]
[Result "0-1"]
[WhiteElo "2301"]
[BlackElo "2619"]
[TimeControl "180+1"]
[EndTime "8:07:21 PDT"]
[Termination "Defend1r won by resignation"]

1. d4 {[%clk 0:03:00.9]} 1... Nf6 {[%clk 0:02:57.4]} 2. Bg5 {[%clk 0:02:59.9]}
2... e6 {[%clk 0:02:54.5]} 3. Nd2 {[%clk 0:02:57.4]} 3... h6 {[%clk 0:02:40.7]}
4. Bh4 {[%clk 0:02:56.4]} 4... d5 {[%clk 0:02:38.9]} 5. Ngf3 {[%clk 0:02:54.5]}
5... Be7 {[%clk 0:02:38.1]} 6. e3 {[%clk 0:02:54.2]} 6... Nbd7 {[%clk
0:02:37.5]} 7. Bd3 {[%clk 0:02:53.8]} 7... c5 {[%clk 0:02:34.8]} 8. c3 {[%clk
0:02:50.5]} 8... O-O {[%clk 0:02:26.4]} 9. Qe2 {[%clk 0:02:49]} 9... b6 {[%clk
0:02:21.1]} 10. e4 {[%clk 0:02:44.3]} 10... dxe4 {[%clk 0:02:18.8]} 11. Nxe4
{[%clk 0:02:43.4]} 11... Bb7 {[%clk 0:02:18]} 12. dxc5 {[%clk 0:02:34]} 12...
Nxe4 {[%clk 0:02:07.5]} 13. Bxe7 {[%clk 0:02:21.4]} 13... Qxe7 {[%clk
0:02:03.6]} 14. Bxe4 {[%clk 0:02:18.7]} 14... Bxe4 {[%clk 0:02:03.6]} 15. Qxe4
{[%clk 0:02:19.3]} 15... Nxc5 {[%clk 0:02:03.9]} 16. Qe3 {[%clk 0:02:18.6]}
16... Rfd8 {[%clk 0:01:59.9]} 17. O-O {[%clk 0:02:17.8]} 17... Rd3 {[%clk
0:01:59.3]} 18. Qf4 {[%clk 0:02:17.3]} 18... Rad8 {[%clk 0:01:57.5]} 19. h3
{[%clk 0:02:14.6]} 19... Qd6 {[%clk 0:01:42.7]} 20. Qh4 {[%clk 0:02:04.3]} 20...
e5 {[%clk 0:01:29.9]} 21. Rfe1 {[%clk 0:02:00.5]} 21... f6 {[%clk 0:01:29.4]}
22. a4 {[%clk 0:01:51.6]} 22... Ne6 {[%clk 0:01:28.3]} 23. Qc4 {[%clk
0:01:42.5]} 23... Qd5 {[%clk 0:01:18.6]} 24. Qxd5 {[%clk 0:01:30.4]} 24... R8xd5
{[%clk 0:01:17.3]} 25. Kf1 {[%clk 0:01:18.7]} 25... Kf7 {[%clk 0:01:13.5]} 26.
Ra3 {[%clk 0:01:04.1]} 26... Rd6 {[%clk 0:01:06.9]} 27. h4 {[%clk 0:01:03.5]}
27... h5 {[%clk 0:01:06.2]} 28. Rb3 {[%clk 0:00:52.6]} 28... Nc5 {[%clk
0:01:05.8]} 29. Rb4 {[%clk 0:00:52.5]} 29... R3d5 {[%clk 0:00:32.4]} 30. a5
{[%clk 0:00:20]} 30... Nd3 {[%clk 0:00:29.8]} 31. axb6 {[%clk 0:00:19.9]} 31...
axb6 {[%clk 0:00:29.6]} 32. Rbe4 {[%clk 0:00:17]} 32... Nxe1 {[%clk 0:00:29.1]}
33. Rxe1 {[%clk 0:00:17.9]} 33... Rd1 {[%clk 0:00:29.4]} 34. Ke2 {[%clk
0:00:18.3]} 34... Rxe1+ {[%clk 0:00:28.9]} 35. Kxe1 {[%clk 0:00:19.2]} 35... Ke6
{[%clk 0:00:29]} 36. Ke2 {[%clk 0:00:19.4]} 36... Kd5 {[%clk 0:00:29.1]} 37. Ke3
{[%clk 0:00:19.7]} 37... f5 {[%clk 0:00:21.8]} 38. Nd2 {[%clk 0:00:18.8]} 38...
Rg6 {[%clk 0:00:19.7]} 39. g3 {[%clk 0:00:18.6]} 39... Rg4 {[%clk 0:00:18.6]}
40. b3 {[%clk 0:00:17.9]} 40... Rg6 {[%clk 0:00:18.4]} 41. c4+ {[%clk 0:00:18]}
41... Kc5 {[%clk 0:00:18.3]} 42. Kd3 {[%clk 0:00:18.4]} 42... Rd6+ {[%clk
0:00:17.9]} 43. Kc3 {[%clk 0:00:18.7]} 43... e4 {[%clk 0:00:15.4]} 44. Nf1
{[%clk 0:00:18.6]} 44... Rd3+ {[%clk 0:00:15.4]} 45. Kc2 {[%clk 0:00:19]} 45...
Rf3 {[%clk 0:00:15.7]} 0-1